lending/lending_fUSD_20250819
["ID","MTS","AMOUNT","RATE_DAILY","PERIOD"]
[380250553,1755627385605,685.38,0.00022999,30]
[380250554,1755627385715,3765.12,0.00022999,30]
[380250555,1755627385921,400.0,0.00022999,30]
[380250556,1755627386673,3301.77,0.00022999,30]
[380250557,1755627386760,400.0,0.00022999,30]
[380250558,1755627386813,3055.62,0.00022999,30]
[380250559,1755627387569,151.0,0.00023,30]
[380250560,1755627387962,731.51,0.00022999,30]
[380250561,1755627388101,400.0,0.00022999,30]
[380250562,1755627390404,400.0,0.00022999,30]
[380250563,1755627390527,1064.59,0.00022999,30]
[380250564,1755627390615,2482.33,0.00022999,30]
[380250565,1755627391210,400.0,0.00022999,30]
[380250566,1755627391965,400.0,0.00022999,30]
[380250567,1755627392099,1435.11,0.00022999,30]
[380250568,1755627393166,400.0,0.00022999,30]
[380250569,1755627393542,1269.56,0.00022999,30]
[380250570,1755627393702,573.48,0.00022999,30]
[380250571,1755627393754,576.28,0.00022999,30]
[380250572,1755627393818,3793.61,0.00022999,30]
[380250573,1755627394190,9066.0,0.00022999,30]
[380250574,1755627394574,400.0,0.00022999,30]
[380250575,1755627394799,755.7,0.00022999,30]
[380250576,1755627394974,400.0,0.00022999,30]
[380250577,1755627395980,400.0,0.00022999,30]
[380250578,1755627396781,400.0,0.00022999,30]
[380250579,1755627396947,963.91,0.00022999,30]
[380250580,1755627397125,479.26,0.00022999,30]
[380250581,1755627397201,400.0,0.00022999,30]
[380250582,1755627397366,968.78,0.00022999,30]
[380250583,1755627397882,7672.31,0.00022999,30]
[380250584,1755627397973,2430.97,0.00022999,30]
[380250585,1755627398952,6059.56,0.00022999,30]
[380250586,1755627399443,3314.09,0.00022999,30]
[380250587,1755627400454,400.0,0.00022999,30]
[380250588,1755627400540,400.0,0.00022999,30]
[380250589,1755627400970,400.0,0.00022999,30]
[380250590,1755627401029,656.85,0.00022999,30]
[380250591,1755627401889,1084.96,0.00022999,30]
[380250592,1755627401945,400.0,0.00022999,30]
[380250593,1755627402148,400.0,0.00022999,30]
[380250594,1755627402397,2290.0,0.00022999,30]
[380250595,1755627402461,911.4,0.00022999,30]
[380250596,1755627402638,786.05,0.00022999,30]
[380250597,1755627402989,560.16,0.00022999,30]
[380250598,1755627403309,400.0,0.00022999,30]
[380250599,1755627404116,553.89,0.00022999,30]
[380250600,1755627404174,2122.49,0.00022999,30]
[380250601,1755627405086,4095.7,0.00022999,30]
[380250602,1755627406100,400.0,0.00022999,30]
[380250603,1755627406352,1526.57,0.00022999,30]
[380250604,1755627406646,7526.61,0.00022999,30]
[380250605,1755627406725,400.0,0.00022999,30]
[380250606,1755627407162,2016.82,0.00022999,30]
[380250607,1755627407745,400.0,0.00022999,30]
[380250608,1755627408570,400.0,0.00022999,30]
[380250609,1755627409171,1259.01,0.00022999,30]
[380250610,1755627409549,2113.55,0.00022999,30]
[380250611,1755627411679,400.0,0.00022999,30]
[380250612,1755627412497,5388.34,0.00022999,30]
[380250613,1755627412545,400.0,0.00022999,30]
[380250614,1755627412611,3550.06,0.00022999,30]
[380250615,1755627412928,400.0,0.00022999,30]
[380250616,1755627413009,2975.12,0.00022999,30]
[380250617,1755627413181,18024.34,0.00022999,30]
[380250618,1755627413355,400.0,0.00022999,30]
[380250619,1755627413620,400.0,0.00022999,30]
[380250620,1755627413736,400.0,0.00022999,30]
[380250621,1755627413803,457.29,0.00022999,30]
[380250622,1755627413849,488.83,0.00022999,30]
[380250623,1755627414111,535.87754602,0.00022999,30]
[380250624,1755627414165,653.89,0.00022999,30]
[380250625,1755627414636,2262.66,0.00022999,30]
[380250626,1755627414701,3055.73,0.00022999,30]
[380250627,1755627414800,1757.56,0.00022999,30]
[380250628,1755627414866,2214.74,0.00022999,30]
[380250629,1755627414952,400.0,0.00022999,30]
[380250630,1755627415577,400.0,0.00022999,30]
[380250631,1755627415690,400.0,0.00022999,30]
[380250632,1755627415824,2615.15,0.00022999,30]
[380250633,1755627415962,400.0,0.00022999,30]
[380250634,1755627416009,400.0,0.00022999,30]
[380250635,1755627416260,491.94,0.00022999,30]
[380250636,1755627416403,4134.88,0.00022999,30]
[380250637,1755627416543,4487.33,0.00022999,30]
[380250638,1755627417553,5579.23,0.00022999,30]
[380250639,1755627418039,3723.98,0.00022999,30]
[380250640,1755627418095,400.0,0.00022999,30]
[380250641,1755627419707,400.0,0.00022999,30]
[380250642,1755627419892,400.0,0.00022999,30]
[380250643,1755627420031,400.0,0.00022999,30]
[380250644,1755627420114,7925.19,0.00022999,30]
[380250645,1755627420320,655.54,0.00022999,30]
[380250646,1755627420834,500.0,0.00022999,30]
[380250647,1755627421206,596.97,0.00022999,30]
[380250648,1755627421334,2383.91,0.00022999,30]
[380250649,1755627421847,576.58,0.00022999,30]
[380250650,1755627422314,5294.79,0.00022999,30]
[380250651,1755627423361,3604.83,0.00022999,30]
[380250652,1755627423431,400.0,0.00022999,30]
[380250653,1755627423479,400.0,0.00022999,30]
[380250654,1755627423579,400.0,0.00022999,30]
[380250655,1755627423636,2321.96,0.00022999,30]
[380250656,1755627423689,7694.59,0.00022999,30]
[380250657,1755627423916,2163.62,0.00022999,30]
[380250658,1755627424485,1211.5,0.00022999,30]
[380250659,1755627426031,400.0,0.00022999,30]
[380250660,1755627426211,460.7,0.00022999,30]
[380250661,1755627427054,400.0,0.00022999,30]
[380250662,1755627427117,3995.32,0.00022999,30]
[380250663,1755627427204,2118.47,0.00022999,30]
[380250664,1755627427552,2406.65,0.00022999,30]
[380250665,1755627428035,400.0,0.00022999,30]
[380250666,1755627428132,1115.03,0.00022999,30]
[380250667,1755627428202,483.6,0.00022999,30]
[380250668,1755627429527,481.32,0.00022999,30]
[380250669,1755627429606,563.75,0.00022999,30]
[380250670,1755627429783,433.53,0.00022999,30]
[380250671,1755627429997,8878.45,0.00022999,30]
[380250672,1755627430355,631.48,0.00022999,30]
[380250673,1755627430887,641.78,0.00022999,30]
[380250674,1755627430964,8138.58,0.00022999,30]
[380250675,1755627431202,1329.15,0.00022999,30]
[380250676,1755627431292,400.0,0.00022999,30]
[380250677,1755627431862,3378.14,0.00022999,30]
[380250678,1755627432399,3760.29,0.00022999,30]
[380250679,1755627432447,400.0,0.00022999,30]
[380250680,1755627434348,3421.69,0.00022999,30]
[380250681,1755627434624,4230.12,0.00022999,30]
[380250682,1755627434774,504.85,0.00022999,30]
[380250683,1755627435815,2621.37,0.00022999,30]
[380250684,1755627435899,1112.41,0.00022999,30]
[380250685,1755627436820,400.0,0.00022999,30]
[380250686,1755627436977,400.0,0.00022999,30]
[380250687,1755627437343,1788.99,0.00022999,30]
[380250688,1755627437638,4705.28,0.00022999,30]
[380250689,1755627437736,1328.95,0.00022999,30]
[380250690,1755627437805,435.96,0.00022999,30]
[380250691,1755627437951,400.0,0.00022999,30]
[380250692,1755627438605,400.0,0.00022999,30]
[380250693,1755627438678,400.0,0.00022999,30]
[380250694,1755627438800,11614.59,0.00022999,30]
[380250695,1755627438862,6831.69,0.00022999,30]
[380250696,1755627439476,635.5,0.00022999,30]
[380250697,1755627440232,1203.09,0.00022999,30]
[380250698,1755627440449,974.67,0.00022999,30]
[380250699,1755627440745,720.23,0.00022999,30]
[380250700,1755627442788,1790.16,0.00022999,30]
[380250701,1755627442841,2508.93,0.00022999,30]
[380250702,1755627442898,400.0,0.00022999,30]
[380250703,1755627443064,1152.85,0.00022999,30]
[380250704,1755627443114,2947.52,0.00022999,30]
[380250705,1755627443250,400.0,0.00022999,30]
[380250706,1755627443818,10009.03,0.00022999,30]
[380250707,1755627443866,400.0,0.00022999,30]
[380250708,1755627445333,400.0,0.00022999,30]
[380250709,1755627445732,400.0,0.00022999,30]
[380250710,1755627446298,4053.2,0.00022999,30]
[380250711,1755627446633,531.96,0.00022999,30]
[380250712,1755627446697,400.0,0.00022999,30]
[380250713,1755627446840,3444.08,0.00022999,30]
[380250714,1755627447023,400.0,0.00022999,30]
[380250715,1755627447729,1948.58,0.00022999,30]
[380250716,1755627448329,400.0,0.00022999,30]
[380250717,1755627448518,400.0,0.00022999,30]
[380250718,1755627448586,400.0,0.00022999,30]
[380250719,1755627448637,7018.75,0.00022999,30]
[380250720,1755627448998,4151.66,0.00022999,30]
[380250721,1755627449899,2743.68,0.00022999,30]
[380250722,1755627449991,400.0,0.00022999,30]
[380250723,1755627450383,546.38,0.00022999,30]
[380250724,1755627451066,400.0,0.00022999,30]
[380250725,1755627451147,3149.23,0.00022999,30]
[380250726,1755627451219,1630.54,0.00022999,30]
[380250727,1755627451337,155.75805226,0.00022999,30]
[380250728,1755627451813,400.0,0.00022999,30]
[380250729,1755627452320,400.0,0.00022999,30]
[380250730,1755627452484,848.32,0.00022999,30]
[380250731,1755627452586,400.0,0.00022999,30]
[380250732,1755627453159,400.0,0.00022999,30]
[380250733,1755627453244,1915.4,0.00022999,30]
[380250734,1755627453834,432.34,0.00022999,30]
[380250735,1755627454106,2525.21,0.00022999,30]
[380250736,1755627456368,2687.92,0.00022999,30]
[380250737,1755627456461,668.1,0.00022999,30]
[380250738,1755627456659,400.0,0.00022999,30]
[380250739,1755627457070,3183.62,0.00022999,30]
[380250740,1755627457466,416.79,0.00022999,30]
[380250741,1755627457591,1164.41,0.00022999,30]
[380250742,1755627457745,3256.8,0.00022999,30]
[380250743,1755627458165,573.25,0.00022999,30]
[380250744,1755627458233,400.0,0.00022999,30]
[380250745,1755627458934,400.0,0.00022999,30]
[380250746,1755627458981,1023.39,0.00022999,30]
[380250747,1755627459293,1777.4,0.00022999,30]
[380250748,1755627459537,1471.0,0.00022999,30]
[380250749,1755627459819,2493.58,0.00022999,30]
[380250750,1755627459868,400.0,0.00022999,30]
[380250751,1755627459944,400.0,0.00022999,30]
[380250752,1755627460297,400.0,0.00022999,30]
[380250753,1755627460510,3161.8,0.00022999,30]
[380250754,1755627460577,867.04,0.00022999,30]
[380250755,1755627462763,400.0,0.00022999,30]
[380250756,1755627463032,1625.04,0.00022999,30]
[380250757,1755627463282,400.0,0.00022999,30]
[380250758,1755627463450,9875.62,0.00022999,30]
[380250759,1755627463527,944.39,0.00022999,30]
[380250760,1755627463811,500.0,0.00022999,30]
[380250761,1755627463925,400.0,0.00022999,30]
[380250762,1755627464597,500.0,0.00022999,30]
[380250763,1755627464711,500.0,0.00022999,30]
[380250764,1755627464829,500.0,0.00022999,30]
[380250765,1755627465007,500.0,0.00022999,30]
[380250766,1755627465272,500.0,0.00022999,30]
[380250767,1755627465545,601.73501877,0.00022999,30]
[380250768,1755627465610,2371.27,0.00022999,30]
[380250769,1755627465726,400.0,0.00022999,30]
[380250770,1755627467419,400.0,0.00022999,30]
[380250771,1755627467558,1502.89,0.00022999,30]
[380250772,1755627467982,300.0,0.00022999,30]
[380250773,1755627468129,400.0,0.00022999,30]
[380250774,1755627468375,3580.5,0.00022999,30]
[380250775,1755627468461,507.0,0.00022999,30]
[380250776,1755627468868,400.0,0.00022999,30]
[380250777,1755627469520,3070.78,0.00022999,30]
[380250778,1755627469718,999.71,0.00022999,30]
[380250779,1755627470117,875.94,0.00022999,30]
[380250780,1755627470805,150.24234856,0.00022999,30]
[380250781,1755627470856,1505.95,0.00022999,30]
[380250782,1755627470945,400.0,0.00022999,30]
[380250783,1755627471608,400.0,0.00022999,30]
[380250784,1755627471852,400.0,0.00022999,30]
[380250785,1755627472182,3167.17,0.00022999,30]
[380250786,1755627472916,2862.58,0.00022999,30]
[380250787,1755627473553,400.0,0.00022999,30]
[380250788,1755627473773,1303.92,0.00022999,30]
[380250789,1755627474030,400.0,0.00022999,30]
[380250790,1755627474594,300.0,0.00022999,30]
[380250791,1755627474739,1268.71,0.00022999,30]
[380250792,1755627474837,6703.69,0.00022999,30]
[380250793,1755627475500,500.0,0.00022999,30]
[380250794,1755627475773,2222.94,0.00022999,30]
[380250795,1755627475822,400.0,0.00022999,30]
[380250796,1755627476000,2239.69,0.00022999,30]
[380250797,1755627476119,500.0,0.00022999,30]
[380250798,1755627476171,4289.36,0.00022999,30]
[380250799,1755627476349,640.13,0.00022999,30]
[380250800,1755627476395,500.0,0.00022999,30]
[380250801,1755627476608,500.0,0.00022999,30]
[380250802,1755627476668,400.0,0.00022999,30]
[380250803,1755627477045,2260.64,0.00022999,30]
[380250804,1755627477117,500.0,0.00022999,30]
[380250805,1755627478208,2593.32,0.00022999,30]
[380250806,1755627478307,500.0,0.00022999,30]
[380250807,1755627478400,500.0,0.00022999,30]
[380250808,1755627478470,3833.39,0.00022999,30]
[380250809,1755627478536,500.0,0.00022999,30]
[380250810,1755627479070,500.0,0.00022999,30]
[380250811,1755627479178,500.0,0.00022999,30]
[380250812,1755627479320,400.0,0.00022999,30]
[380250813,1755627479376,500.0,0.00022999,30]
[380250814,1755627479472,500.0,0.00022999,30]
[380250815,1755627479562,500.0,0.00022999,30]
[380250816,1755627479617,400.0,0.00022999,30]
[380250817,1755627479812,500.0,0.00022999,30]
[380250818,1755627480006,500.0,0.00022999,30]
[380250819,1755627480193,618.79,0.00022999,30]
[380250820,1755627480337,500.0,0.00022999,30]
[380250821,1755627480477,500.0,0.00022999,30]
[380250822,1755627480780,500.0,0.00022999,30]
[380250823,1755627481020,500.0,0.00022999,30]
[380250824,1755627481397,1322.55,0.00022999,30]
[380250825,1755627481500,500.0,0.00022999,30]
[380250826,1755627481549,2491.41,0.00022999,30]
[380250827,1755627481631,400.0,0.00022999,30]
[380250828,1755627481688,500.0,0.00022999,30]
[380250829,1755627481893,500.0,0.00022999,30]
[380250830,1755627482118,500.0,0.00022999,30]
[380250831,1755627482435,481.77922516,0.00022999,30]
[380250832,1755627482489,969.03,0.00022999,30]
[380250833,1755627482562,3130.0,0.00022999,30]
[380250834,1755627482964,4365.42,0.00022999,30]
[380250835,1755627483221,400.0,0.00022999,30]
[380250836,1755627483417,1000.6,0.00022999,30]
[380250837,1755627484489,400.0,0.00022999,30]
[380250838,1755627484682,2774.48,0.00022999,30]
[380250839,1755627484732,1339.57,0.00022999,30]
[380250840,1755627484899,400.0,0.00022999,30]
[380250841,1755627485471,400.0,0.00022999,30]
[380250842,1755627485654,430.25,0.00022999,30]
[380250843,1755627486326,400.0,0.00022999,30]
[380250844,1755627486380,400.0,0.00022999,30]
[380250845,1755627486456,2352.57,0.00022999,30]
[380250846,1755627486785,400.0,0.00022999,30]
[380250847,1755627488158,2682.91,0.00022999,30]
[380250848,1755627489056,400.0,0.00022999,30]
[380250849,1755627489149,400.0,0.00022999,30]
[380250850,1755627489420,4802.49,0.00022999,30]
[380250851,1755627489561,400.0,0.00022999,30]
[380250852,1755627489695,1968.3,0.00022999,30]
[380250853,1755627490265,400.0,0.00022999,30]
[380250854,1755627490424,346.252702,0.00022999,30]
[380250855,1755627490472,400.0,0.00022999,30]
[380250856,1755627490745,400.0,0.00022999,30]
[380250857,1755627490894,400.0,0.00022999,30]
[380250858,1755627491220,400.0,0.00022999,30]
[380250859,1755627491330,400.0,0.00022999,30]
[380250860,1755627491496,633.15,0.00022999,30]
[380250861,1755627491935,400.0,0.00022999,30]
[380250862,1755627492074,2561.39,0.00022999,30]
[380250863,1755627492715,400.0,0.00022999,30]
[380250864,1755627493080,400.0,0.00022999,30]
[380250865,1755627493159,2292.75,0.00022999,30]
[380250866,1755627493628,2425.4,0.00022999,30]
[380250867,1755627494219,2053.3,0.00022999,30]
[380250868,1755627494644,1060.4,0.00022999,30]
[380250869,1755627495029,1714.45,0.00022999,30]
[380250870,1755627495248,400.0,0.00022999,30]
[380250871,1755627495466,1229.84,0.00022999,30]
[380250872,1755627495555,663.85,0.00022999,30]
[380250873,1755627496001,2026.63,0.00022999,30]
[380250874,1755627496050,15640.26,0.00022999,30]
[380250875,1755627496627,400.0,0.00022999,30]
[380250876,1755627496844,635.7,0.00022999,30]
[380250877,1755627497008,400.0,0.00022999,30]
[380250878,1755627497862,1413.05,0.00022999,30]
[380250879,1755627498260,2318.53,0.00022999,30]
[380250880,1755627498577,1121.49,0.00022999,30]
[380250881,1755627498856,3406.1,0.00022999,30]
[380250882,1755627500013,468.77,0.00022999,30]
[380250883,1755627500262,1690.0,0.00022999,30]
[380250884,1755627500312,1570.69,0.00022999,30]
[380250885,1755627500459,3465.65,0.00022999,30]
[380250886,1755627501038,1202.29,0.00022999,30]
[380250887,1755627501088,421.84,0.00022999,30]
[380250888,1755627501138,6835.4,0.00022999,30]
[380250889,1755627501605,1213.16,0.00022999,30]
[380250890,1755627502254,400.0,0.00022999,30]
[380250891,1755627502344,665.8,0.00022999,30]
[380250892,1755627502969,3017.52,0.00022999,30]
[380250893,1755627503909,1042.54,0.00022999,30]
[380250894,1755627504242,400.0,0.00022999,30]
[380250895,1755627504615,400.0,0.00022999,30]
[380250896,1755627504684,4207.94,0.00022999,30]
[380250897,1755627504762,400.0,0.00022999,30]
[380250898,1755627504844,2962.56,0.00022999,30]
[380250899,1755627504925,1046.05,0.00022999,30]
[380250900,1755627505036,400.0,0.00022999,30]
[380250901,1755627506372,400.0,0.00022999,30]
[380250902,1755627506470,3214.31,0.00022999,30]
[380250903,1755627506538,400.0,0.00022999,30]
[380250904,1755627507110,1409.71,0.00022999,30]
[380250905,1755627507441,3223.62,0.00022999,30]
[380250906,1755627508549,400.0,0.00022999,30]
[380250907,1755627509040,400.0,0.00022999,30]
[380250908,1755627509095,551.7,0.00022999,30]
[380250909,1755627509161,400.0,0.00022999,30]
[380250910,1755627510784,400.0,0.00022999,30]
[380250911,1755627510841,1779.91,0.00022999,30]
[380250912,1755627511022,400.0,0.00022999,30]
[380250913,1755627511455,2693.93,0.00022999,30]
[380250914,1755627512607,400.0,0.00022999,30]
[380250915,1755627513122,400.0,0.00022999,30]
[380250916,1755627513178,1115.9,0.00022999,30]
[380250917,1755627513404,400.0,0.00022999,30]
[380250918,1755627514342,400.0,0.00022999,30]
[380250919,1755627514430,400.0,0.00022999,30]
[380250920,1755627514562,1299.08,0.00022999,30]
[380250921,1755627515103,400.0,0.00022999,30]
[380250922,1755627515253,2629.5,0.00022999,30]
[380250923,1755627515314,457.94,0.00022999,30]
[380250924,1755627515875,691.74,0.00022999,30]
[380250925,1755627515973,400.0,0.00022999,30]
[380250926,1755627516203,400.0,0.00022999,30]
[380250927,1755627516264,817.53,0.00022999,30]
[380250928,1755627516563,9569.15,0.00022999,30]
[380250929,1755627516611,400.0,0.00022999,30]
[380250930,1755627516713,723.68,0.00022999,30]
[380250931,1755627516779,2928.5,0.00022999,30]
[380250932,1755627517630,2563.45,0.00022999,30]
[380250933,1755627517989,2792.43,0.00022999,30]
[380250934,1755627518313,3332.88,0.00022999,30]
[380250935,1755627518376,2484.47,0.00022999,30]
[380250936,1755627518443,557.18,0.00022999,30]
[380250937,1755627518530,3456.98,0.00022999,30]
[380250938,1755627518619,400.0,0.00022999,30]
[380250939,1755627518688,400.0,0.00022999,30]
[380250940,1755627518805,928.68,0.00022999,30]
[380250941,1755627519506,2036.37,0.00022999,30]
[380250942,1755627519574,1570.82,0.00022999,30]
[380250943,1755627520050,458.04,0.00022999,30]
[380250944,1755627520448,400.0,0.00022999,30]
[380250945,1755627521560,3127.25,0.00022999,30]
[380250946,1755627521784,401.42,0.00022999,30]
[380250947,1755627523535,17171.44,0.00022999,30]
[380250948,1755627523599,400.0,0.00022999,30]
[380250949,1755627523703,632.25,0.00022999,30]
[380250950,1755627523833,400.0,0.00022999,30]
[380250951,1755627525195,731.52,0.00022999,30]
[380250952,1755627525264,536.82,0.00022999,30]
[380250953,1755627525420,2464.38,0.00022999,30]
[380250954,1755627526042,403.46,0.00022999,30]
[380250955,1755627526446,400.0,0.00022999,30]
[380250956,1755627526807,454.69,0.00022999,30]
[380250957,1755627526927,3084.11,0.00022999,30]
[380250958,1755627527300,1553.12,0.00022999,30]
[380250959,1755627528365,786.75,0.00022999,30]
[380250960,1755627528573,400.0,0.00022999,30]
[380250961,1755627528643,475.57,0.00022999,30]
[380250962,1755627528839,400.0,0.00022999,30]
[380250963,1755627528936,3007.65,0.00022999,30]
[380250964,1755627529039,4346.55,0.00022999,30]
[380250965,1755627529178,10395.09,0.00022999,30]
[380250966,1755627531395,2738.57,0.00022999,30]
[380250967,1755627532837,400.0,0.00022999,30]
[380250968,1755627533044,6763.82,0.00022999,30]
[380250969,1755627533868,400.0,0.00022999,30]
[380250970,1755627534049,400.0,0.00022999,30]
[380250971,1755627534273,400.0,0.00022999,30]
[380250972,1755627534409,400.0,0.00022999,30]
[380250973,1755627534473,400.0,0.00022999,30]
[380250974,1755627534607,407.65,0.00022999,30]
[380250975,1755627534719,1131.74,0.00022999,30]
[380250976,1755627534982,1131.74,0.00022999,30]
[380250977,1755627535138,1131.74,0.00022999,30]
[380250978,1755627535451,529.13,0.00022999,30]
[380250979,1755627535521,1131.74,0.00022999,30]
[380250980,1755627535648,1131.74,0.00022999,30]
[380250981,1755627535795,400.0,0.00022999,30]
[380250982,1755627535877,1131.74,0.00022999,30]
[380250983,1755627536015,400.0,0.00022999,30]
[380250984,1755627536131,1131.74,0.00022999,30]
[380250985,1755627536234,1612.86,0.00022999,30]
[380250986,1755627536359,1131.74,0.00022999,30]
[380250987,1755627536571,2830.29,0.00022999,30]
[380250988,1755627536718,1131.74,0.00022999,30]
[380250989,1755627536861,1131.74,0.00022999,30]
[380250990,1755627537096,1959.38,0.00022999,30]
[380250991,1755627537604,1131.74,0.00022999,30]
[380250992,1755627537696,667.64,0.00022999,30]
[380250993,1755627537802,1131.74,0.00022999,30]
[380250994,1755627537925,2143.19,0.00022999,30]
[380250995,1755627538097,400.0,0.00022999,30]
[380250996,1755627538168,2476.68,0.00022999,30]
[380250997,1755627538234,1131.74,0.00022999,30]
[380250998,1755627538341,1131.74,0.00022999,30]
[380250999,1755627538460,2708.08,0.00022999,30]
[380251000,1755627538521,1131.74,0.00022999,30]
[380251001,1755627538594,1120.46,0.00022999,30]
[380251002,1755627538823,1131.74,0.00022999,30]
[380251003,1755627538993,419.9,0.00022999,30]
[380251004,1755627539082,1131.74,0.00022999,30]
[380251005,1755627539156,1383.13,0.00022999,30]
[380251006,1755627539253,1131.74,0.00022999,30]
[380251007,1755627539450,1131.74,0.00022999,30]
[380251008,1755627539589,3772.55,0.00022999,30]
[380251009,1755627539662,1131.74,0.00022999,30]
[380251010,1755627539912,1131.74,0.00022999,30]
[380251011,1755627540166,1131.74,0.00022999,30]
[380251012,1755627540430,2378.9,0.00022999,30]
[380251013,1755627540491,1131.74,0.00022999,30]
[380251014,1755627540691,1131.91663324,0.00022999,30]
[380251015,1755627541180,400.0,0.00022999,30]
[380251016,1755627541279,400.0,0.00022999,30]
[380251017,1755627542101,963.68,0.00022999,30]
[380251018,1755627542201,1811.58,0.00022999,30]
[380251019,1755627543328,2609.76,0.00022999,30]
[380251020,1755627543536,400.0,0.00022999,30]
[380251021,1755627543801,400.0,0.00022999,30]
[380251022,1755627544694,447.69,0.00022999,30]
[380251023,1755627545347,3790.73,0.00022999,30]
[380251024,1755627545535,3242.64,0.00022999,30]
[380251025,1755627545604,578.11,0.00022999,30]
[380251026,1755627545666,400.0,0.00022999,30]
[380251027,1755627545779,2157.16,0.00021945,30]
[380251028,1755627545933,400.0,0.00022999,30]
[380251029,1755627546356,400.0,0.00022999,30]
[380251030,1755627546485,2328.96,0.00022999,30]
[380251031,1755627546547,400.0,0.00022999,30]
[380251032,1755627546621,3889.03,0.00022999,30]
[380251033,1755627547188,1054.95,0.00022999,30]
[380251034,1755627548564,400.0,0.00022999,30]
[380251035,1755627549759,4429.25,0.00022999,30]
[380251036,1755627550077,3929.6,0.00022999,30]
[380251037,1755627550180,2533.08,0.00022999,30]
[380251038,1755627550367,3305.13,0.00022999,30]
[380251039,1755627550789,656.87,0.00022999,30]
[380251040,1755627551325,2071.84,0.00022999,30]
[380251041,1755627551894,12104.09,0.00022999,30]
[380251042,1755627552002,433.02,0.00022999,30]
[380251043,1755627552996,400.0,0.00022999,30]
[380251044,1755627553846,1052.36,0.00022999,30]
[380251045,1755627553999,400.0,0.00022999,30]
[380251046,1755627554798,6040.57,0.00022999,30]
[380251047,1755627555387,400.0,0.00022999,30]
[380251048,1755627555474,1435.77,0.00022999,30]
[380251049,1755627555872,659.09,0.00022999,30]
[380251050,1755627555939,5033.66,0.00022999,30]
[380251051,1755627556811,2451.09,0.00022999,30]
[380251052,1755627557055,400.0,0.00022999,30]